[Event "German Bundesliga 2024-25"]
[Site "Germany"]
[Date "2025.01.12"]
[Round "6.1"]
[White "Kazakouski, Valery"]
[Black "Narayanan S L"]
[Result "1-0"]
[Annotator "TA"]
[ECO "C47"]
[WhiteElo "2567"]
[BlackElo "2638"]
[PlyCount "113"]
[EventDate "2024.09.27"]
[EventType "team-tourn"]
[EventCountry "GER"]
[SourceTitle "playchess.com"]
[Source "ChessBase"]
[SourceQuality "1"]
[WhiteTeam "Bad Mergentheim"]
[BlackTeam "Deggendorf"]
[TimeControl "40/5400+30:1800+30"]

{[%evp 11,113,42,31,40,37,31,26,29,38,17,41,35,27,0,0,0,0,0,57,60,59,48,52,16,66,64,58,14,18,15,19,22,21,26,95,90,91,97,84,77,143,152,229,241,225,231,230,233,233,226,243,223,237,231,234,224,261,238,248,245,248,208,258,250,263,263,252,250,383,276,277,289,269,239,252,263,245,251,675,661,664,654,933,953,914,918,918,918,819,663,29971,29960,29985,29986,29986,29987,29987,29988,29988,29989,29989,29990,29990,29991]} 1. e4 {[%emt 0:00:04]} e5 {[%emt 0:00:10]} 2. Nf3 {[%emt 0:00:09]} Nc6 {[%emt 0:00:05]} 3. Nc3 {[%emt 0:00:16]} Nf6 {[%emt 0:00:08]} 4. d4 {[%emt 0:00:09]} Bb4 {[%emt 0:00:12]} 5. Nxe5 {[%emt 0:00:32]} Bxc3+ {[%emt 0:00:09]} 6. bxc3 {[%emt 0:00:11]} Qe7 $1 {[%emt 0:00:05]} 7. f3 {[%emt 0:00:29]} Nxe5 {[%emt 0:00:11]} 8. dxe5 {[%emt 0:00:07]} Qxe5 {[%emt 0:00:06]} 9. Qd4 {[%emt 0:00:11]} d6 {[%emt 0:00:26]} 10. a4 {[%emt 0:00:16]} (10. Qxe5+ dxe5 11. Bb5+ Bd7 12. Bc4) 10... a5 {[%emt 0:07:42]} 11. Bd3 {[%emt 0:04:08]} O-O {[%emt 0:07:21]} 12. O-O {[%emt 0:06:29][%cal Bh1f1,Bf1f2,Bf2d2,Bd2d8][%mdl 32]} (12. Qxe5 {simplifies} dxe5 13. Kf2 b6 14. Rd1) 12... Re8 {[%emt 0:00:17]} 13. Rb1 {[%emt 0:07:45]} Nd7 {[%emt 0:16:30][%cal Bf6d7,Bd7c5,Bc5a4,Ba4c3][%mdl 32]} 14. Bb5 {[%emt 0:06:09]} c6 {[%emt 0:03:54]} ({Black should play} 14... b6 $11) 15. Bd3 $14 {[%emt 0:06:32]} Nc5 {[%emt 0:18:08]} 16. Ba3 {[%emt 0:02:41][%cal Bc1a3,Ba3d6,Bd6b4,Bb4e1][%mdl 32]} h5 {[%emt 0:15:29]} 17. Rf2 {[%emt 0:14:19]} h4 {[%emt 0:05:21]} (17... Qxd4 $11 18. cxd4 Nxa4 (18... Nxd3 19. cxd3 d5 20. Rb6 $16)) 18. Qxe5 {[%emt 0:10:57]} Rxe5 {[%emt 0:00:37]} 19. Rd2 {[%emt 0:00:32]} Nxa4 {[%emt 0:09:05]} 20. Bxd6 {[%emt 0:01:04]} Re6 {[%emt 0:00:51]} 21. Bf1 {[%emt 0:05:06]} Nxc3 {[%emt 0:02:07]} 22. Ra1 {[%emt 0:00:36] and Bb4 should not be overlooked} b5 {[%emt 0:03:26]} (22... Nd5 $1 $11 {remains equal.} 23. Bc5 (23. exd5 $2 Rxd6 24. c4 cxd5 $19) 23... Nf6) 23. Bb4 $16 {[%emt 0:02:15][%mdl 1024] White has strong compensation.} Na4 {[%emt 0:00:12]} 24. Rd8+ {[%emt 0:00:11]} Kh7 {[%emt 0:00:04]} 25. Be1 $36 {[%emt 0:01:10][%cal Od8f8][%mdl 2048] Black is under strong pressure. White has more active pieces.} h3 {[%emt 0:04:54]} 26. g3 {[%emt 0:03:26]} (26. gxh3 Re7 $16) 26... Rf6 {[%emt 0:01:47]} (26... Re7 $16) 27. f4 $18 {[%emt 0:04:43]} (27. Bxh3 Bxh3 28. Rxa8 Rxf3 29. Bxa5 Nc5 $14) 27... Bb7 {[%emt 0:01:42]} 28. Rxa8 {[%emt 0:02:02]} Bxa8 {[%emt 0:00:03]} 29. e5 {[%emt 0:00:29]} (29. Bxh3 c5 30. e5 (30. Bxa5 Bxe4 31. Bd7 Bc6 $11) 30... Rb6) 29... Re6 {[%emt 0:01:11]} 30. Bxh3 {[%emt 0:01:24]} Re7 {[%emt 0:00:12]} 31. Bxa5 {[%emt 0:01:31]} c5 {[%emt 0:00:06] [#]} 32. c4 $1 {[%emt 0:04:28][%mdl 512]} Bc6 {[%emt 0:00:09]} 33. Bf5+ {[%emt 0:00:59]} g6 {[%emt 0:00:06]} 34. cxb5 {[%emt 0:04:28]} Bxb5 {[%emt 0:00:07]} 35. Bc2 {[%emt 0:01:03]} Ra7 {[%emt 0:00:06]} 36. Be1 {[%emt 0:06:20]} (36. Rxa4 $2 Bxa4 37. Bxa4 Rxa5 $19) 36... c4 {[%emt 0:00:24]} 37. Kf2 {[%emt 0:01:25]} Ra6 {[%emt 0:00:31]} 38. Ke3 {[%emt 0:00:42]} Kg7 {[%emt 0:01:23]} 39. g4 {[%emt 0:01:04]} f6 {[%emt 0:00:29]} (39... Nc5 $142 40. Rxa6 Bxa6) 40. Rb1 {[%emt 0:01:57]} Bc6 {[%emt 0:00:06]} 41. exf6+ {[%emt 0:32:06]} Kxf6 {[%emt 0:30:06]} 42. Kd4 {[%emt 0:00:00]} Bd7 {[%emt 0:00:00]} 43. Bh4+ {[%emt 0:00:00]} (43. Kxc4 Rc6+ 44. Kd3 Nc5+ 45. Ke3 Bxg4 $14) 43... Kf7 {[%emt 0:00:00]} 44. Rb7 {[%emt 0:00:00]} (44. Kxc4 Rc6+ 45. Kd3 Nc5+ 46. Ke3 Bxg4 $11) 44... Ke8 $2 {[%emt 0:00:00]} (44... Rd6+ 45. Kxc4 Rc6+ 46. Kb4 Nc5) 45. f5 {[%emt 0:00:00]} (45. Kxc4 Rc6+ (45... Bxg4 $2 {too greedy.} 46. Re7+ Kf8 47. Kb5 $18) 46. Kd4 Rxc2 47. Rb8+ Kf7 $17) 45... gxf5 {[%emt 0:00:00]} 46. gxf5 {[%emt 0:00:00]} Rd6+ {[%emt 0:00:00]} 47. Ke5 $1 {[%emt 0:00:00]} ({Stronger than} 47. Kxc4 Rc6+ 48. Kd4 Rxc2 $17) 47... Rd2 {[%emt 0:00:00]} 48. Rb8+ {[%emt 0:00:00]} Kf7 {[%emt 0:00:00] [#]} 49. Be4 $1 {[%emt 0:00:00] White wants to mate with Bf3.} Re2 {[%emt 0:00:00]} 50. Kf4 {[%emt 0:00:00]} Nc3 {[%emt 0:00:00] Against Bd5+} 51. Bf3 {[%emt 0:00:00]} Rxh2 {[%emt 0:00:00]} 52. Bh5+ {[%emt 0:00:00] A strong pair of Bishops.} Kg7 {[%emt 0:00:00] [#]} 53. f6+ $1 {[%emt 0:00:00]} Kh7 {[%emt 0:00:00]} 54. f7 {[%emt 0:00:00]} Nd5+ {[%emt 0:00:00]} 55. Ke5 {[%emt 0:00:00]} Rxh4 {[%emt 0:00:00]} 56. f8=Q {[%emt 0:00:35][%csl Gb8][%cal Rf8h8]} (56. f8=B Rxh5+ 57. Kd4 c3 $19) 56... Rxh5+ {[%emt 0:00:00]} 57. Kd6 {[%emt 0:00:06]} 1-0

[Event "German Bundesliga 2024-25"]
[Site "Germany"]
[Date "2025.01.12"]
[Round "6.2"]
[White "Indjic, Aleksandar"]
[Black "Pultinevicius, Paulius"]
[Result "1-0"]
[Annotator "TA"]
[ECO "A13"]
[WhiteElo "2647"]
[BlackElo "2579"]
[PlyCount "175"]
[EventDate "2024.09.27"]
[EventType "team-tourn"]
[EventCountry "GER"]
[SourceTitle "playchess.com"]
[Source "ChessBase"]
[SourceQuality "1"]
[WhiteTeam "Deggendorf"]
[BlackTeam "Bad Mergentheim"]
[TimeControl "40/5400+30:1800+30"]

{[%evp 100,175,104,55,64,68,84,84,104,104,188,101,198,198,284,262,244,218,283,195,935,922,968,931,822,779,704,549,436,410,967,947,808,179,179,179,179,179,606,179,639,1222,1459,1608,1394,1214,1891,1672,1927,1617,1176,901,576,576,1197,1544,2573,3368,4168,4168,4168,4168,4160,4160,4160,4160,4160,4153,4153,4153,4153,4153,4149,4149,4145,4141,4141,4137]} 1. Nf3 {[%emt 0:00:14]} Nf6 {[%emt 0:00:33]} 2. c4 {[%emt 0:00:33]} e6 {[%emt 0:00:08]} 3. g3 {[%emt 0:01:27]} d5 {[%emt 0:00:16]} 4. Bg2 {[%emt 0:00:08]} dxc4 {[%emt 0:01:41]} 5. Qa4+ {[%emt 0:00:49]} Nbd7 {[%emt 0:00:58]} 6. Qxc4 {[%emt 0:00:20]} a6 {[%emt 0:00:06]} 7. Qc2 {[%emt 0:00:46]} c5 {[%emt 0:00:27]} 8. O-O {[%emt 0:01:50]} b5 {[%emt 0:00:55]} 9. a4 {[%emt 0:01:35]} Bb7 {[%emt 0:00:33]} 10. Nc3 {[%emt 0:00:08]} Qb6 {[%emt 0:03:37]} 11. d3 {[%emt 0:00:21]} Be7 {[%emt 0:01:54]} 12. e4 {[%emt 0:06:50]} O-O {[%emt 0:00:50]} 13. Be3 {[%emt 0:04:35]} Ng4 {[%emt 0:06:49]} 14. Bf4 {[%emt 0:00:37]} Bf6 {[%emt 0:00:24]} 15. Ne2 {[%emt 0:08:59]} Rac8 {[%emt 0:06:26]} 16. axb5 {[%emt 0:02:40]} axb5 {[%emt 0:00:18]} 17. h3 {[%emt 0:00:06]} Nge5 {[%emt 0:00:33]} 18. Nxe5 {[%emt 0:00:07]} Nxe5 {[%emt 0:00:11]} 19. Be3 {[%emt 0:00:06]} Rfd8 {[%emt 0:05:24]} 20. Rfd1 {[%emt 0:00:15]} b4 {[%emt 0:01:21]} 21. Nc1 {[%emt 0:10:29]} Qb5 {[%emt 0:16:36]} 22. f4 {[%emt 0:00:22]} Nd7 {[%emt 0:00:18]} 23. Nb3 {[%emt 0:02:00]} Bd4 {[%emt 0:14:39]} 24. Bxd4 {[%emt 0:14:55]} cxd4 {[%emt 0:00:06]} 25. Qf2 {[%emt 0:00:25]} Nc5 {[%emt 0:08:49]} 26. Nxd4 {[%emt 0:00:38]} Qd7 {[%emt 0:00:04]} 27. Nf3 {[%emt 0:00:08]} Nb3 {[%emt 0:00:25]} 28. Rab1 {[%emt 0:03:42]} Qc7 {[%emt 0:16:04]} 29. Qe3 {[%emt 0:02:19]} Qc2 {[%emt 0:01:11]} 30. d4 {[%emt 0:02:01]} Qxe4 {[%emt 0:03:25]} 31. Qxb3 {[%emt 0:00:59]} Bd5 {[%emt 0:00:37]} 32. Qd3 {[%emt 0:01:16]} Qxd3 {[%emt 0:00:09]} 33. Rxd3 {[%emt 0:00:00]} Be4 {[%emt 0:00:00]} 34. Rbd1 {[%emt 0:00:12]} Bxd3 {[%emt 0:00:00]} 35. Rxd3 {[%emt 0:00:07]} Rc2 {[%emt 0:00:00]} 36. Rb3 {[%emt 0:01:23]} Ra8 {[%emt 0:00:40]} 37. Rxb4 {[%emt 0:00:49]} g6 {[%emt 0:02:36]} 38. g4 {[%emt 0:19:08]} Ra2 {[%emt 0:02:54]} 39. f5 {[%emt 0:07:58]} exf5 {[%emt 0:00:20]} 40. gxf5 {[%emt 0:00:41]} Raxb2 {[%emt 0:00:29]} 41. Rxb2 {[%emt 0:30:43]} Rxb2 {[%emt 0:30:05]} 42. fxg6 {[%emt 0:01:07]} fxg6 {[%emt 0:01:03]} 43. Kh2 {[%emt 0:02:20]} Kg7 {[%emt 0:00:48]} 44. Kg3 {[%emt 0:00:05]} Kf6 {[%emt 0:00:35]} 45. h4 {[%emt 0:00:50]} Rb3 {[%emt 0:03:06]} 46. Bh3 {[%emt 0:05:52]} h6 {[%emt 0:01:07]} 47. Kf4 {[%emt 0:00:00]} Ke7 {[%emt 0:00:00]} 48. Ke4 {[%emt 0:00:00]} Kd6 {[%emt 0:00:00]} 49. Bg4 {[%emt 0:00:00]} Rb1 {[%emt 0:00:00]} 50. Bc8 {[%emt 0:00:00]} Ra1 {[%emt 0:00:00]} 51. Bh3 {[%emt 0:00:00]} (51. Ne5 $16) 51... Rc1 $14 {[%emt 0:00:00]} 52. Kd3 {[%emt 0:00:00]} Ra1 {[%emt 0:00:00]} 53. Bg2 $1 {[%emt 0:00:00]} Ra5 {[%emt 0:00:00]} 54. Ke4 {[%emt 0:00:00]} Ra1 {[%emt 0:00:22]} (54... Ra2 $16) 55. Nd2 {[%emt 0:00:00]} ({White should try} 55. Ne5 $18) 55... Re1+ {[%emt 0:03:29]} (55... Ra2 $16 56. Ke3 Ra3+ 57. Kf4 Ke7) 56. Kd3 $18 {[%emt 0:00:00]} Rg1 {[%emt 0:00:15]} (56... Ke7 $142 57. Nf3 Rd1+ 58. Ke2 Ra1) 57. Nc4+ $18 {[%emt 0:00:00]} Ke7 {[%emt 0:00:05] [#]} 58. Ne3 $1 {[%emt 0:00:00]} Kd6 {[%emt 0:01:19]} 59. Ke4 {[%emt 0:00:00]} Ke7 $2 {[%emt 0:00:56]} (59... Rc1 60. Bf3 Rc8) 60. d5 $18 {[%emt 0:00:00]} Ra1 {[%emt 0:03:32]} 61. Ke5 {[%emt 0:00:00]} Re1 {[%emt 0:00:24] [#]} 62. Kd4 $1 {[%emt 0:00:00]} (62. d6+ Kd7 63. Kd4 (63. Bh3+ Kc6 $11) 63... Kxd6 $11) 62... Re2 {[%emt 0:00:27]} 63. Kd3 {[%emt 0:01:06]} Rf2 {[%emt 0:00:30]} 64. Be4 {[%emt 0:00:15]} Rf4 {[%emt 0:00:51]} (64... g5 $142 65. Nf5+ Kd7) 65. Bxg6 $18 {[%emt 0:00:17]} Kf6 {[%emt 0:00:31]} 66. Ng2 $2 {[%emt 0:02:58]} (66. Bf5 {Threatens to win with d6.} Rxh4 67. d6) 66... Rg4 $18 {[%emt 0:00:17]} 67. Be4 {[%emt 0:00:07]} Ke5 {[%emt 0:00:37]} 68. Bf3 {[%emt 0:00:05]} Ra4 $2 {[%emt 0:00:53]} (68... Rd4+ 69. Ke3 Ra4) 69. Ke3 $2 {[%emt 0:00:05]} (69. h5 Rb4 70. Kc3) 69... Rb4 $2 {[%emt 0:00:30]} (69... h5 70. Kf2 (70. Bxh5 Ra3+ 71. Kf2 Kxd5 $16) 70... Ra2+ 71. Kg3 Ra7) 70. h5 $18 {[%emt 0:01:18]} Rb3+ {[%emt 0:00:29]} 71. Kf2 {[%emt 0:00:05]} Rd3 {[%emt 0:00:30]} 72. Kg3 {[%emt 0:00:31]} Kf5 {[%emt 0:00:31]} 73. Nh4+ {[%emt 0:00:22]} Kg5 {[%emt 0:00:23]} 74. Ng6 {[%emt 0:00:06]} Kf5 {[%emt 0:00:12]} 75. Kf2 {[%emt 0:00:29]} Ra3 {[%emt 0:00:11]} 76. Ke2 {[%emt 0:00:13]} Rc3 {[%emt 0:00:18]} 77. Kd2 {[%emt 0:02:00]} ({Stronger than} 77. d6 Ke6 $11) 77... Ra3 {[%emt 0:00:39]} 78. Be2 {[%emt 0:03:21]} Ra2+ {[%emt 0:01:18]} 79. Ke3 {[%emt 0:00:08]} Ra4 {[%emt 0:00:27]} 80. Bb5 {[%emt 0:01:10]} Rb4 {[%emt 0:00:14]} 81. Bc6 {[%emt 0:00:38]} Re4+ {[%emt 0:00:47]} 82. Kd3 {[%emt 0:00:37]} Rb4 {[%emt 0:00:31]} 83. Kc3 {[%emt 0:00:25]} Rb1 {[%emt 0:00:13]} 84. Kd4 {[%emt 0:00:11]} Rd1+ {[%emt 0:00:27]} 85. Kc5 {[%emt 0:00:11]} Rc1+ {[%emt 0:00:50]} 86. Kb6 {[%emt 0:00:14]} Kg5 {[%emt 0:00:31]} 87. d6 {[%emt 0:00:11]} Rd1 {[%emt 0:00:07]} 88. Kc7 {[%emt 0:00:22]} 1-0

[Event "German Bundesliga 2024-25"]
[Site "Germany"]
[Date "2025.01.12"]
[Round "6.2"]
[White "L'Ami, Erwin"]
[Black "McShane, Luke J"]
[Result "1/2-1/2"]
[Annotator "TA"]
[ECO "C45"]
[WhiteElo "2614"]
[BlackElo "2609"]
[PlyCount "91"]
[EventDate "2024.09.27"]
[EventType "team-tourn"]
[EventCountry "GER"]
[SourceTitle "playchess.com"]
[Source "ChessBase"]
[SourceQuality "1"]
[WhiteTeam "SG Solingen"]
[BlackTeam "Werder Bremen"]
[TimeControl "40/5400+30:1800+30"]

{[%evp 22,91,60,49,77,73,85,77,101,51,63,66,64,52,73,56,77,79,96,83,93,84,90,74,86,71,94,89,89,56,78,91,87,45,39,41,60,62,74,61,65,41,66,60,76,64,65,43,51,65,44,40,48,53,42,52,95,53,106,93,97,54,54,43,49,45,50,0,0,0,36,0]} 1. e4 {[%emt 0:00:05]} e5 {[%emt 0:00:22]} 2. Nf3 {[%emt 0:00:09]} Nc6 {[%emt 0:00:05]} 3. d4 {[%emt 0:00:16]} exd4 {[%emt 0:00:14]} 4. Nxd4 {[%emt 0:00:06]} Bb4+ {[%emt 0:03:58]} 5. c3 {[%emt 0:00:21]} Be7 {[%emt 0:00:06]} 6. Nf5 {[%emt 0:02:13]} Bf6 {[%emt 0:01:36]} 7. Ne3 {[%emt 0:01:13]} Nge7 {[%emt 0:02:51]} 8. Be2 {[%emt 0:16:13]} Bg5 {[%emt 0:28:31]} 9. O-O {[%emt 0:06:46]} Bf4 {[%emt 0:00:32]} 10. c4 {[%emt 0:06:33]} O-O {[%emt 0:08:53]} 11. Nc3 {[%emt 0:01:21]} d6 {[%emt 0:00:07]} 12. Ned5 {[%emt 0:04:57]} Bxc1 {[%emt 0:20:43]} 13. Rxc1 {[%emt 0:00:18]} Be6 {[%emt 0:00:10]} 14. f4 {[%emt 0:06:06]} f6 {[%emt 0:01:08]} 15. Bg4 {[%emt 0:02:31]} (15. a3 $16) 15... Bxg4 $14 {[%emt 0:09:21]} 16. Qxg4 {[%emt 0:00:18]} Rf7 {[%emt 0:00:16]} 17. Rcd1 {[%emt 0:05:20]} Qc8 {[%emt 0:12:46]} 18. Qh5 {[%emt 0:03:37]} (18. Qe2 {simplifies} a6 19. Rf3 Nxd5 20. exd5 Ne7 21. Re3) 18... a6 {[%emt 0:01:29]} 19. Rd3 {[%emt 0:04:19]} Ng6 {[%emt 0:00:08]} 20. Ne3 {[%emt 0:05:04]} (20. Rh3 {feels hotter.} Nf8 21. Rg3 Ne7 22. Nxe7+ Rxe7 23. e5) 20... Nb4 {[%emt 0:03:22]} 21. Rd2 {[%emt 0:01:11]} Qb8 {[%emt 0:00:08]} 22. g3 {[%emt 0:07:19]} Qa7 {[%emt 0:00:22]} 23. Qf3 {[%emt 0:00:40]} Re8 {[%emt 0:00:57]} 24. Kg2 {[%emt 0:05:31]} Ne7 {[%emt 0:01:43]} 25. Qf2 {[%emt 0:02:14]} Nbc6 {[%emt 0:00:35]} 26. Re1 {[%emt 0:01:24]} Nd8 {[%emt 0:01:10]} 27. Ned5 {[%emt 0:01:07]} Qxf2+ {[%emt 0:00:13]} 28. Kxf2 {[%emt 0:00:06]} Nc8 {[%emt 0:01:44]} 29. b4 {[%emt 0:03:02]} Ne6 {[%emt 0:00:20]} 30. Ne3 {[%emt 0:02:16]} g6 {[%emt 0:00:15]} 31. Ncd5 {[%emt 0:01:48]} Kg7 {[%emt 0:00:34]} 32. h4 {[%emt 0:00:37]} c6 {[%emt 0:01:12] [#]} 33. Nc3 $1 {[%emt 0:00:13]} Rfe7 {[%emt 0:00:07]} 34. Red1 {[%emt 0:02:14]} a5 {[%emt 0:00:20]} 35. a3 {[%emt 0:00:27]} axb4 {[%emt 0:00:03]} 36. axb4 {[%emt 0:00:04]} Nc7 {[%emt 0:00:56]} 37. Rd3 {[%emt 0:01:15]} Na6 {[%emt 0:00:38]} 38. Rb1 {[%emt 0:01:07]} Nb8 {[%emt 0:00:09]} 39. Kf3 {[%emt 0:01:37]} Nd7 {[%emt 0:00:26]} (39... h5 $14) 40. Rbd1 {[%emt 0:02:03]} Nf8 {[%emt 0:00:20]} 41. c5 {[%emt 0:34:34]} dxc5 {[%emt 0:04:49]} 42. bxc5 {[%emt 0:00:00]} Ne6 {[%emt 0:00:20]} 43. Na4 {[%emt 0:00:00]} Nf8 {[%emt 0:05:18]} 44. Nc3 {[%emt 0:00:00]} Ne6 {[%emt 0:00:52]} 45. Na4 {[%emt 0:00:00]} Nf8 $1 {[%emt 0:00:06]} 46. Nc3 {[%emt 0:00:00]} 1/2-1/2

[Event "German Bundesliga 2024-25"]
[Site "Germany"]
[Date "2025.01.12"]
[Round "6.2"]
[White "Predojevic, Borki"]
[Black "Svane, Frederik"]
[Result "1/2-1/2"]
[Annotator "TA"]
[ECO "B23"]
[WhiteElo "2565"]
[BlackElo "2654"]
[PlyCount "41"]
[EventDate "2024.09.27"]
[EventType "team-tourn"]
[EventCountry "GER"]
[SourceTitle "playchess.com"]
[Source "ChessBase"]
[SourceQuality "1"]
[WhiteTeam "Kirchweyhe"]
[BlackTeam "Hamburg"]
[TimeControl "40/5400+30:1800+30"]

{[%evp 9,41,7,16,10,0,0,7,0,0,0,0,0,5,18,21,27,0,0,0,0,0,0,0,0,0,0,0,0,0,0,81,79,90,85]} 1. e4 {[%emt 0:00:03]} c5 {[%emt 0:00:06]} 2. Nc3 {[%emt 0:00:13]} d6 {[%emt 0:00:10]} 3. d4 {[%emt 0:01:30]} cxd4 {[%emt 0:00:45]} 4. Qxd4 {[%emt 0:00:06]} Nc6 {[%emt 0:00:03]} 5. Qd2 {[%emt 0:00:11]} g6 {[%emt 0:00:06]} 6. b3 {[%emt 0:01:01]} Bh6 {[%emt 0:00:05]} 7. f4 {[%emt 0:00:09]} Nf6 {[%emt 0:00:04]} 8. Bb2 {[%emt 0:00:05]} O-O {[%emt 0:00:06]} 9. O-O-O {[%emt 0:01:10]} a5 {[%emt 0:00:05][%cal Oa5a4]} 10. a4 {[%emt 0:04:49]} Nb4 {[%emt 0:00:07][%cal Od6d5]} 11. Kb1 {[%emt 0:00:53]} Qb6 {[%emt 0:00:05][%cal Od6d5]} 12. Nf3 {[%emt 0:00:26]} Bg4 {[%emt 0:01:04]} 13. Bc4 {[%emt 0:04:41]} Rac8 {[%emt 0:00:11]} 14. Rhf1 {[%emt 0:04:18]} Rxc4 {[%emt 0:01:28]} 15. bxc4 {[%emt 0:00:18]} Rc8 {[%emt 0:01:05]} 16. h3 {[%emt 0:03:50]} Be6 {[%emt 0:02:25]} 17. e5 {[%emt 0:01:03]} Ne8 $1 {[%emt 0:06:05]} 18. Rfe1 {[%emt 0:03:23]} Rxc4 {[%emt 0:14:25]} 19. exd6 {[%emt 0:00:15]} Qxd6 {[%emt 0:14:31]} (19... Nxd6 $11 20. Rxe6 (20. Nd4 $2 Bg7 $19) 20... fxe6) 20. Qxd6 $16 {[%emt 0:14:58]} Nxd6 {[%emt 0:03:16]} 21. Nd4 {[%emt 0:09:07]} 1/2-1/2

[Event "German Bundesliga 2024-25"]
[Site "Germany"]
[Date "2025.01.12"]
[Round "6.3"]
[White "Svane, Rasmus"]
[Black "Kadric, Denis"]
[Result "1/2-1/2"]
[Annotator "TA"]
[ECO "C41"]
[WhiteElo "2628"]
[BlackElo "2562"]
[PlyCount "47"]
[EventDate "2024.09.27"]
[EventType "team-tourn"]
[EventCountry "GER"]
[SourceTitle "playchess.com"]
[Source "ChessBase"]
[SourceQuality "1"]
[WhiteTeam "Hamburg"]
[BlackTeam "Kirchweyhe"]
[TimeControl "40/5400+30:1800+30"]

{[%evp 17,47,33,38,27,28,35,47,34,46,35,64,15,22,17,21,-7,0,-13,8,16,8,13,20,23,29,9,6,6,17,4,5,6]} 1. d4 {[%emt 1:31:00]} d6 2. e4 {[%emt 0:00:30]} Nf6 3. Nc3 {[%emt 0:00:30]} e5 4. Nf3 {[%emt 0:00:30]} Nbd7 5. Bc4 {[%emt 0:00:30]} Be7 6. O-O {[%emt 0:00:30]} O-O 7. a4 {[%emt 0:00:30]} c6 8. Re1 {[%emt 0:00:30]} h6 9. h3 {[%emt 0:00:30]} Re8 10. a5 {[%emt 0:00:30]} Bf8 11. Be3 {[%emt 0:00:30]} exd4 12. Bxd4 {[%emt 0:00:30]} Qc7 13. Nd2 {[%emt 0:00:30]} Rb8 14. Bxa7 {[%emt 0:00:30] White is much more active.} (14. b4 $1 $14 {was preferable.}) 14... Ra8 $11 15. Bd4 {[%emt 0:00:30]} Rxa5 16. b4 {[%emt 0:00:30]} Rxa1 17. Qxa1 {[%emt 0:00:30]} d5 18. exd5 {[%emt 0:00:30]} Rxe1+ 19. Qxe1 {[%emt 0:00:30]} Bxb4 20. dxc6 {[%emt 0:00:30]} bxc6 21. Nde4 {[%emt 0:00:30]} Nxe4 22. Qxe4 {[%emt 0:00:30]} Nf8 $1 {Repels Qg6} 23. Ne2 {[%emt 0:00:30]} Bd6 24. Bc3 {[%emt 0:00:30]} 1/2-1/2

[Event "German Bundesliga 2024-25"]
[Site "Germany"]
[Date "2025.01.12"]
[Round "6.3"]
[White "Areshchenko, Alexander"]
[Black "Ragger, Markus"]
[Result "1/2-1/2"]
[Annotator "TA"]
[ECO "C50"]
[WhiteElo "2606"]
[BlackElo "2579"]
[PlyCount "48"]
[EventDate "2024.09.27"]
[EventType "team-tourn"]
[EventCountry "GER"]
[SourceTitle "playchess.com"]
[Source "ChessBase"]
[SourceQuality "1"]
[WhiteTeam "Werder Bremen"]
[BlackTeam "SG Solingen"]
[TimeControl "40/5400+30:1800+30"]

{[%evp 9,48,13,20,5,13,0,0,-20,0,0,0,0,0,0,14,0,0,0,0,0,0,0,0,0,0,0,0,0,0,0,0,0,0,0,0,0,0,0,0,0,0]} 1. e4 {[%emt 0:00:03]} e5 {[%emt 0:00:02]} 2. Nf3 {[%emt 0:00:06]} Nc6 {[%emt 0:00:04]} 3. Bc4 {[%emt 0:00:04]} Bc5 {[%emt 0:00:06]} 4. d3 {[%emt 0:00:08]} d6 {[%emt 0:00:13]} 5. a4 {[%emt 0:01:18]} Nf6 {[%emt 0:00:21]} 6. Nc3 {[%emt 0:00:53]} O-O {[%emt 0:02:04]} 7. h3 {[%emt 0:12:16]} Be6 {[%emt 0:02:36]} 8. O-O {[%emt 0:02:47]} a5 {[%emt 0:04:16]} 9. Bxe6 {[%emt 0:10:07]} fxe6 {[%emt 0:00:16]} 10. Be3 {[%emt 0:00:29]} Bxe3 {[%emt 0:06:18]} 11. fxe3 {[%emt 0:00:04]} d5 {[%emt 0:00:04]} 12. exd5 {[%emt 0:15:29]} exd5 {[%emt 0:00:14]} 13. e4 {[%emt 0:00:15]} Qd6 {[%emt 0:09:29]} 14. Qe2 {[%emt 0:17:28]} dxe4 {[%emt 0:10:29]} 15. Nxe4 {[%emt 0:04:21]} Nd4 {[%emt 0:03:07]} 16. Nxf6+ {[%emt 0:18:32]} Rxf6 {[%emt 0:00:52]} 17. Nxd4 {[%emt 0:02:10]} Qxd4+ {[%emt 0:02:25]} 18. Kh2 {[%emt 0:03:45]} (18. Kh1 {keeps more tension.} Qxb2 19. Qe4 h6 20. Kh2) 18... Raf8 {[%emt 0:03:20][%cal Ba8f8,Bf8f6,Bf6f2,Bf2c2,Bc2b2][%mdl 32]} 19. Rxf6 {[%emt 0:00:18]} Rxf6 $11 {[%emt 0:00:13] KQR-KQR} 20. Re1 {[%emt 0:00:15]} Rf2 {[%emt 0:13:55]} 21. Qxe5 {[%emt 0:00:13]} Qxe5+ {[%emt 0:00:46]} 22. Rxe5 {[%emt 0:00:03]} Rxc2 {[%emt 0:00:05]} 23. Rxa5 {[%emt 0:00:20]} Rxb2 {[%emt 0:00:05]} 24. Rd5 {[%emt 0:04:54]} c6 {[%emt 0:00:31]} 1/2-1/2

[Event "German Bundesliga 2024-25"]
[Site "Germany"]
[Date "2025.01.12"]
[Round "6.3"]
[White "Laurusas, Tomas"]
[Black "Sankalp Gupta"]
[Result "1/2-1/2"]
[Annotator "TA"]
[ECO "D27"]
[WhiteElo "2579"]
[BlackElo "2550"]
[PlyCount "49"]
[EventDate "2024.09.27"]
[EventType "team-tourn"]
[EventCountry "GER"]
[SourceTitle "playchess.com"]
[Source "ChessBase"]
[SourceQuality "1"]
[WhiteTeam "Bad Mergentheim"]
[BlackTeam "Deggendorf"]
[TimeControl "40/5400+30:1800+30"]

{[%evp 16,49,31,15,23,7,16,5,20,0,16,14,18,18,20,9,4,2,7,7,11,4,0,0,0,0,0,0,22,4,27,0,0,0,21,0]} 1. d4 {[%emt 0:00:03]} d5 {[%emt 0:00:07]} 2. c4 {[%emt 0:00:15]} dxc4 {[%emt 0:00:02]} 3. Nf3 {[%emt 0:00:23]} Nf6 {[%emt 0:00:03]} 4. e3 {[%emt 0:00:31]} e6 {[%emt 0:00:05]} 5. Bxc4 {[%emt 0:00:08]} c5 {[%emt 0:00:06]} 6. O-O {[%emt 0:00:36]} a6 {[%emt 0:00:02]} 7. b3 {[%emt 0:01:23]} cxd4 {[%emt 0:03:51]} 8. Nxd4 {[%emt 0:00:15]} Be7 {[%emt 0:00:07]} 9. Bb2 {[%emt 0:00:42]} O-O {[%emt 0:00:44]} 10. Nd2 {[%emt 0:01:18][%cal Bb1d2,Bd2c4,Bc4a5][%mdl 32]} b5 {[%emt 0:05:48]} 11. Be2 {[%emt 0:00:18]} Bb7 {[%emt 0:00:02]} 12. a4 {[%emt 0:04:26]} bxa4 {[%emt 0:05:25]} 13. Rxa4 {[%emt 0:00:15]} Nbd7 {[%emt 0:00:07]} 14. Bf3 {[%emt 0:23:46]} Nd5 {[%emt 0:10:06]} 15. Nc4 {[%emt 0:00:50]} Rc8 {[%emt 0:07:30]} 16. Qe2 {[%emt 0:12:20]} Qc7 {[%emt 0:02:00]} 17. Raa1 {[%emt 0:01:01]} Nc5 {[%emt 0:08:58]} 18. Na5 {[%emt 0:05:04]} Ba8 {[%emt 0:02:22]} 19. Rfc1 {[%emt 0:00:12] Black must now prevent Bxd5.} Qb6 {[%emt 0:05:53]} 20. Nc4 {[%emt 0:08:38]} Qb8 {[%emt 0:02:35]} 21. Ba3 {[%emt 0:03:25]} Rfe8 {[%emt 0:05:26]} 22. Na5 {[%emt 0:04:09][%cal Ob3b4] b4! poses a challenge} Qb6 {[%emt 0:04:50]} (22... Bf8 $5) 23. Nc4 {[%emt 0:03:31]} (23. Qc4 $5) 23... Qb8 {[%emt 0:00:17]} 24. Na5 {[%emt 0:05:40][%cal Ob3b4]} Qb6 {[%emt 0:00:30]} 25. Nc4 {[%emt 0:00:30]} (25. Qc4 $5) 1/2-1/2